[Event "Elite Hotels Open 2024"]
[Site "Elite Stadshotellet, Kungsgatan 6, Vaxjo, Sweden"]
[Date "2024.02.10"]
[Round "6.3"]
[White "Seo, Jung Min"]
[Black "Ostlund, Joar"]
[Result "1-0"]
[TimeControl "15 minutes + 5 seconds per move from move one (Round 1 - 4) / 90 minutes + 30 seconds per move from move one (Round 5 - 8)"]
[WhiteTitle "IM"]
[BlackTitle "FM"]
[WhiteFideId "1734687"]
[BlackFideId "1735020"]
[WhiteElo "2466"]
[BlackElo "2327"]

1. e4 {[%clk 01:30:59]} {[%emt 00:11:57]} e5 {[%clk 01:30:36]} {[%emt
00:00:24]} 2. Nf3 {[%clk 01:31:27]} {[%emt 00:00:03]} Nc6 {[%clk 01:31:00]}
{[%emt 00:00:07]} 3. Bb5 {[%clk 01:31:56]} Nf6 {[%clk 01:31:02]} {[%emt
00:00:27]} 4. d3 {[%clk 01:32:21]} {[%emt 00:00:06]} d6 {[%clk 01:31:11]}
{[%emt 00:00:21]} 5. c3 {[%clk 01:31:24]} {[%emt 00:01:27]} Bd7 {[%clk
01:31:19]} {[%emt 00:00:22]} 6. Nbd2 {[%clk 01:30:22]} {[%emt 00:01:32]} a6
{[%clk 01:30:54]} {[%emt 00:00:55]} 7. Ba4 {[%clk 01:30:36]} {[%emt 00:00:16]}
g6 {[%clk 01:31:00]} {[%emt 00:00:23]} 8. O-O {[%clk 01:30:42]} {[%emt
00:00:24]} Bg7 {[%clk 01:31:12]} {[%emt 00:00:17]} 9. Re1 {[%clk 01:31:05]}
{[%emt 00:00:08]} O-O {[%clk 01:31:20]} {[%emt 00:00:22]} 10. Nf1 {[%clk
01:31:05]} {[%emt 00:00:30]} h6 {[%clk 01:30:45]} {[%emt 00:01:04]} 11. Ng3
{[%clk 01:30:59]} {[%emt 00:00:37]} Re8 {[%clk 01:30:38]} {[%emt 00:00:37]} 12.
h3 {[%clk 01:25:52]} {[%emt 00:05:36]} d5 {[%clk 01:27:51]} {[%emt 00:03:17]}
13. Be3 {[%clk 01:25:03]} {[%emt 00:01:19]} Qe7 {[%clk 01:25:41]} {[%emt
00:02:41]} 14. b4 {[%clk 01:16:09]} {[%emt 00:09:25]} dxe4 {[%clk 01:09:04]}
{[%emt 00:17:06]} 15. dxe4 {[%clk 01:16:33]} {[%emt 00:00:07]} Nd8 {[%clk
01:07:17]} {[%emt 00:02:17]} 16. Bc2 {[%clk 01:12:33]} {[%emt 00:04:29]} b6
{[%clk 00:58:13]} {[%emt 00:09:34]} 17. Qd2 {[%clk 01:10:04]} {[%emt 00:02:59]}
Kh7 {[%clk 00:57:34]} {[%emt 00:01:09]} 18. Rad1 {[%clk 01:10:21]} {[%emt
00:00:13]} a5 {[%clk 00:55:18]} {[%emt 00:02:46]} 19. a3 {[%clk 01:07:07]}
{[%emt 00:03:44]} Nb7 {[%clk 00:44:14]} {[%emt 00:11:34]} 20. Nxe5 {[%clk
00:45:23]} {[%emt 00:22:14]} Qxe5 {[%clk 00:43:36]} {[%emt 00:01:08]} 21. Bf4
{[%clk 00:40:30]} {[%emt 00:05:23]} Qe7 {[%clk 00:28:26]} {[%emt 00:15:40]} 22.
e5 {[%clk 00:40:28]} {[%emt 00:00:32]} Bc6 {[%clk 00:28:26]} {[%emt 00:00:30]}
23. exf6 {[%clk 00:40:38]} {[%emt 00:00:20]} Qxf6 {[%clk 00:28:46]} {[%emt
00:00:09]} 24. Rxe8 {[%clk 00:26:51]} {[%emt 00:14:18]} Rxe8 {[%clk 00:24:12]}
{[%emt 00:05:03]} 25. Nh5 {[%clk 00:24:37]} {[%emt 00:02:44]} Qxc3 {[%clk
00:23:49]} {[%emt 00:00:53]} 26. Nxg7 {[%clk 00:25:01]} {[%emt 00:00:07]} Qxd2
{[%clk 00:23:24]} {[%emt 00:00:55]} 27. Rxd2 {[%clk 00:25:28]} {[%emt
00:00:03]} Kxg7 {[%clk 00:23:46]} {[%emt 00:00:08]} 28. Bxc7 {[%clk 00:25:55]}
{[%emt 00:00:03]} axb4 {[%clk 00:23:52]} {[%emt 00:00:24]} 29. axb4 {[%clk
00:26:01]} {[%emt 00:00:24]} b5 {[%clk 00:23:02]} {[%emt 00:01:19]} 30. f3
{[%clk 00:25:23]} {[%emt 00:01:08]} Re7 {[%clk 00:22:00]} {[%emt 00:01:32]} 31.
Bb6 {[%clk 00:25:39]} {[%emt 00:00:14]} Rd7 {[%clk 00:21:30]} {[%emt 00:01:00]}
32. Re2 {[%clk 00:25:16]} {[%emt 00:00:52]} Nd6 {[%clk 00:20:43]} {[%emt
00:01:18]} 33. Bd4+ {[%clk 00:25:24]} {[%emt 00:00:23]} Kf8 {[%clk 00:18:22]}
{[%emt 00:02:51]} 34. Kf2 {[%clk 00:23:49]} {[%emt 00:02:04]} Nc4 {[%clk
00:17:34]} {[%emt 00:01:19]} 35. Bf6 {[%clk 00:23:24]} {[%emt 00:00:52]} Na3
{[%clk 00:13:57]} {[%emt 00:04:09]} 36. Bb3 {[%clk 00:23:03]} {[%emt 00:00:49]}
Rd3 {[%clk 00:13:13]} {[%emt 00:01:17]} 37. Re3 {[%clk 00:21:06]} {[%emt
00:02:27]} Rd2+ {[%clk 00:12:10]} {[%emt 00:01:33]} 38. Re2 {[%clk 00:19:58]}
{[%emt 00:01:38]} Rd3 {[%clk 00:12:26]} {[%emt 00:00:14]} 39. Ba2 {[%clk
00:17:40]} {[%emt 00:02:48]} Bd5 {[%clk 00:09:35]} {[%emt 00:03:21]} 40. Bxd5
{[%clk 00:17:45]} {[%emt 00:00:24]} Rxd5 {[%clk 00:10:02]} {[%emt 00:00:03]} 41.
Ra2 {[%clk 00:18:09]} {[%emt 00:00:06]} Rd6 {[%clk 00:09:02]} {[%emt 00:01:30]}
42. Be5 {[%clk 00:17:05]} {[%emt 00:01:33]} Rd5 {[%clk 00:09:30]} {[%emt
00:00:04]} 43. f4 {[%clk 00:13:50]} {[%emt 00:03:44]} Nc4 {[%clk 00:09:02]}
{[%emt 00:00:58]} 44. Bf6 {[%clk 00:14:07]} {[%emt 00:00:11]} Ke8 {[%clk
00:09:09]} {[%emt 00:00:25]} 45. Re2+ {[%clk 00:12:04]} {[%emt 00:02:34]} Kd7
{[%clk 00:03:24]} {[%emt 00:06:15]} 46. Re7+ {[%clk 00:12:18]} {[%emt
00:00:15]} Kd6 {[%clk 00:03:53]} {[%emt 00:00:02]} 47. Rxf7 {[%clk 00:11:49]}
{[%emt 00:00:59]} Rd2+ {[%clk 00:03:57]} {[%emt 00:00:25]} 48. Kf3 {[%clk
00:11:45]} {[%emt 00:00:31]} Rd3+ {[%clk 00:03:42]} {[%emt 00:00:49]} 49. Ke4
{[%clk 00:11:17]} {[%emt 00:00:54]} Rg3 {[%clk 00:02:59]} {[%emt 00:01:15]} 50.
Be5+ {[%clk 00:11:33]} {[%emt 00:00:15]} Nxe5 {[%clk 00:02:59]} {[%emt
00:00:31]} 51. fxe5+ {[%clk 00:11:59]} {[%emt 00:00:04]} Ke6 {[%clk 00:03:16]}
{[%emt 00:00:13]} 52. Rf6+ {[%clk 00:12:21]} {[%emt 00:00:07]} Ke7 {[%clk
00:03:28]} {[%emt 00:00:18]} 53. Rf2 {[%clk 00:11:16]} {[%emt 00:01:35]} Rb3
{[%clk 00:03:19]} {[%emt 00:00:39]} 54. Kd5 {[%clk 00:11:26]} {[%emt 00:00:21]}
Rxb4 {[%clk 00:01:29]} {[%emt 00:02:21]} 55. Rf6 {[%clk 00:10:16]} {[%emt
00:01:39]} Rb2 {[%clk 00:01:41]} {[%emt 00:00:18]} 56. Rxg6 {[%clk 00:10:43]}
{[%emt 00:00:02]} Rd2+ {[%clk 00:02:03]} {[%emt 00:00:08]} 57. Ke4 {[%clk
00:10:53]} {[%emt 00:00:20]} h5 {[%clk 00:01:18]} {[%emt 00:01:15]} 58. g4
{[%clk 00:10:40]} {[%emt 00:00:43]} hxg4 {[%clk 00:01:40]} {[%emt 00:00:08]} 59.
hxg4 {[%clk 00:11:07]} {[%emt 00:00:03]} Re2+ {[%clk 00:00:52]} {[%emt
00:01:19]} 60. Kf4 {[%clk 00:11:29]} {[%emt 00:00:07]} Rf2+ {[%clk 00:01:16]}
{[%emt 00:00:06]} 61. Ke3 {[%clk 00:11:54]} {[%emt 00:00:05]} Rg2 {[%clk
00:01:02]} {[%emt 00:00:45]} 62. Kf3 {[%clk 00:12:13]} {[%emt 00:00:09]} Rb2
{[%clk 00:00:36]} {[%emt 00:00:57]} 63. Rb6 {[%clk 00:12:40]} {[%emt 00:00:03]}
b4 {[%clk 00:00:55]} {[%emt 00:00:11]} 64. g5 {[%clk 00:12:05]} {[%emt
00:01:06]} Rb1 {[%clk 00:00:53]} {[%emt 00:00:33]} 65. g6 {[%clk 00:12:23]}
{[%emt 00:00:11]} Rg1 {[%clk 00:00:52]} {[%emt 00:00:30]} 66. Kf4 {[%clk
00:12:27]} {[%emt 00:00:26]} b3 {[%clk 00:00:36]} {[%emt 00:00:47]} 67. Kf5
{[%clk 00:12:54]} {[%emt 00:00:02]} Rf1+ {[%clk 00:00:41]} {[%emt 00:00:25]} 68.
Kg5 {[%clk 00:13:21]} {[%emt 00:00:03]} Rg1+ {[%clk 00:00:35]} {[%emt
00:00:37]} 69. Kh6 {[%clk 00:13:48]} {[%emt 00:00:03]} Rh1+ {[%clk 00:00:45]}
{[%emt 00:00:21]} 70. Kg7 {[%clk 00:14:14]} {[%emt 00:00:03]} Rb1 {[%clk
00:00:53]} {[%emt 00:00:22]} 71. Kg8 {[%clk 00:14:20]} {[%emt 00:00:22]} b2
{[%clk 00:00:57]} {[%emt 00:00:27]} 72. g7 {[%clk 00:14:47]} {[%emt 00:00:03]}
Kd7 {[%clk 00:00:50]} {[%emt 00:00:37]} 73. Rd6+ {[%clk 00:15:10]} {[%emt
00:00:07]} Ke7 {[%clk 00:00:58]} {[%emt 00:00:23]} 74. Rd2 {[%clk 00:15:34]}
{[%emt 00:00:04]} Ke6 {[%clk 00:00:38]} {[%emt 00:00:52]} 75. Re2 {[%clk
00:15:30]} {[%emt 00:00:33]} Kd7 {[%clk 00:00:40]} {[%emt 00:00:28]} 76. Rh2
{[%clk 00:15:50]} {[%emt 00:00:10]} Ke7 {[%clk 00:00:37]} {[%emt 00:00:34]} 77.
Kh7 {[%clk 00:16:11]} {[%emt 00:00:07]} 1-0

[Event "Elite Hotels Open 2024"]
[Site "Elite Stadshotellet, Kungsgatan 6, Vaxjo, Sweden"]
[Date "2024.02.10"]
[Round "6.4"]
[White "Johansson, Linus"]
[Black "Sorensen, Hampus"]
[Result "1/2-1/2"]
[TimeControl "15 minutes + 5 seconds per move from move one (Round 1 - 4) / 90 minutes + 30 seconds per move from move one (Round 5 - 8)"]
[WhiteTitle "IM"]
[BlackTitle "IM"]
[WhiteFideId "1711113"]
[BlackFideId "8703884"]
[WhiteElo "2434"]
[BlackElo "2430"]

1. d4 {[%clk 01:30:57]} {[%emt 00:00:02]} d5 {[%clk 01:30:52]} {[%emt
00:00:09]} 2. c4 {[%clk 01:31:23]} {[%emt 00:00:04]} c6 {[%clk 01:31:16]}
{[%emt 00:00:06]} 3. Nf3 {[%clk 01:31:46]} {[%emt 00:00:07]} Nf6 {[%clk
01:31:38]} {[%emt 00:00:08]} 4. Nc3 {[%clk 01:32:13]} {[%emt 00:00:03]} e6
{[%clk 01:32:00]} {[%emt 00:00:08]} 5. e3 {[%clk 01:32:36]} {[%emt 00:00:07]}
a6 {[%clk 01:32:23]} {[%emt 00:00:07]} 6. Bd3 {[%clk 01:23:53]} {[%emt
00:09:12]} dxc4 {[%clk 01:32:36]} {[%emt 00:00:17]} 7. Bxc4 {[%clk 01:24:22]}
{[%emt 00:00:01]} b5 {[%clk 01:32:53]} {[%emt 00:00:13]} 8. Be2 {[%clk
01:24:47]} {[%emt 00:00:05]} Bb7 {[%clk 01:29:52]} {[%emt 00:03:30]} 9. O-O
{[%clk 01:25:07]} {[%emt 00:00:10]} c5 {[%clk 01:29:30]} {[%emt 00:00:52]} 10.
dxc5 {[%clk 01:25:30]} {[%emt 00:00:08]} Bxc5 {[%clk 01:29:21]} {[%emt
00:00:38]} 11. Qxd8+ {[%clk 01:25:54]} {[%emt 00:00:06]} Kxd8 {[%clk 01:29:47]}
{[%emt 00:00:05]} 12. Nd2 {[%clk 01:26:11]} {[%emt 00:00:12]} Nbd7 {[%clk
01:27:15]} {[%emt 00:03:02]} 13. Nb3 {[%clk 01:26:34]} {[%emt 00:00:07]} Bb4
{[%clk 01:26:00]} {[%emt 00:01:46]} 14. Bd2 {[%clk 01:17:33]} {[%emt 00:09:31]}
Nc5 {[%clk 01:08:44]} {[%emt 00:17:46]} 15. Nc1 {[%clk 01:06:19]} {[%emt
00:11:44]} Ke7 {[%clk 00:59:19]} {[%emt 00:09:56]} 16. a3 {[%clk 01:02:40]}
{[%emt 00:04:08]} Bxc3 {[%clk 00:59:33]} {[%emt 00:00:16]} 17. Bxc3 {[%clk
01:03:09]} {[%emt 00:00:01]} Rhc8 {[%clk 00:53:13]} {[%emt 00:06:50]} 18. Bd4
{[%clk 00:42:05]} {[%emt 00:21:34]} Nfd7 {[%clk 00:46:57]} {[%emt 00:06:47]} 19.
Bd1 {[%clk 00:32:26]} {[%emt 00:10:08]} Na4 {[%clk 00:31:11]} {[%emt 00:16:16]}
20. Bxa4 {[%clk 00:29:13]} {[%emt 00:03:43]} bxa4 {[%clk 00:31:34]} {[%emt
00:00:08]} 21. Nd3 {[%clk 00:26:20]} {[%emt 00:03:23]} f6 {[%clk 00:30:02]}
{[%emt 00:02:01]} 22. f3 {[%clk 00:26:01]} {[%emt 00:00:49]} Bc6 {[%clk
00:27:56]} {[%emt 00:02:36]} 23. Rfc1 {[%clk 00:20:33]} {[%emt 00:05:58]} Bb5
{[%clk 00:26:58]} {[%emt 00:01:28]} 24. Rxc8 {[%clk 00:19:16]} {[%emt
00:01:47]} Rxc8 {[%clk 00:27:25]} {[%emt 00:00:03]} 25. Rc1 {[%clk 00:19:40]}
{[%emt 00:00:06]} Rxc1+ {[%clk 00:27:21]} {[%emt 00:00:35]} 26. Nxc1 {[%clk
00:20:08]} Bc4 {[%clk 00:26:02]} {[%emt 00:01:49]} 27. e4 {[%clk 00:20:22]}
{[%emt 00:00:16]} e5 {[%clk 00:25:03]} {[%emt 00:01:30]} 28. Bc3 {[%clk
00:20:43]} {[%emt 00:00:09]} Ke6 {[%clk 00:23:49]} {[%emt 00:01:44]} 29. Bb4
{[%clk 00:20:57]} {[%emt 00:00:16]} g6 {[%clk 00:21:38]} {[%emt 00:02:41]} 30.
Kf2 {[%clk 00:21:16]} {[%emt 00:00:12]} Nb6 {[%clk 00:20:39]} {[%emt 00:01:29]}
31. Bc5 {[%clk 00:17:54]} {[%emt 00:03:52]} Nd7 {[%clk 00:21:02]} {[%emt
00:00:07]} 32. Bb4 {[%clk 00:16:15]} {[%emt 00:02:09]} Nb6 {[%clk 00:21:23]}
{[%emt 00:00:08]} 33. Bc3 {[%clk 00:16:32]} {[%emt 00:00:12]} Bb5 {[%clk
00:19:29]} {[%emt 00:02:25]} 34. Na2 {[%clk 00:16:40]} {[%emt 00:00:23]} Bc4
{[%clk 00:17:30]} {[%emt 00:02:29]} 35. Nb4 {[%clk 00:17:01]} {[%emt 00:00:09]}
Bb5 {[%clk 00:17:50]} {[%emt 00:00:10]} 36. g3 {[%clk 00:17:02]} {[%emt
00:00:28]} Kd6 {[%clk 00:17:44]} {[%emt 00:00:37]} 37. Nc2 {[%clk 00:17:12]}
{[%emt 00:00:20]} Nc4 {[%clk 00:17:39]} {[%emt 00:00:35]} 38. h4 {[%clk
00:17:17]} {[%emt 00:00:24]} Ke6 {[%clk 00:17:32]} {[%emt 00:00:37]} 39. Ne1
{[%clk 00:16:40]} {[%emt 00:01:08]} Nb6 {[%clk 00:17:21]} {[%emt 00:00:41]} 40.
Ng2 {[%clk 00:16:45]} {[%emt 00:00:25]} Nc4 {[%clk 00:17:32]} {[%emt 00:00:19]}
41. g4 {[%clk 00:16:55]} {[%emt 00:00:20]} h5 {[%clk 00:11:54]} {[%emt
00:06:07]} 42. Kg3 {[%clk 00:17:17]} {[%emt 00:00:09]} hxg4 {[%clk 00:10:43]}
{[%emt 00:01:41]} 43. Kxg4 {[%clk 00:17:36]} {[%emt 00:00:11]} Bc6 {[%clk
00:10:59]} {[%emt 00:00:14]} 44. Ne1 {[%clk 00:17:15]} {[%emt 00:00:51]} Nd6
{[%clk 00:07:21]} {[%emt 00:04:08]} 45. Nd3 {[%clk 00:16:43]} {[%emt 00:01:02]}
Bb5 {[%clk 00:07:40]} {[%emt 00:00:12]} 46. Nc5+ {[%clk 00:17:02]} {[%emt
00:00:10]} Kf7 {[%clk 00:07:58]} {[%emt 00:00:12]} 47. f4 {[%clk 00:14:25]}
{[%emt 00:03:07]} Nxe4 {[%clk 00:07:16]} {[%emt 00:01:12]} 48. Nxe4 {[%clk
00:14:40]} {[%emt 00:00:14]} f5+ {[%clk 00:07:43]} {[%emt 00:00:04]} 49. Kf3
{[%clk 00:14:45]} {[%emt 00:00:25]} 1/2-1/2

[Event "Elite Hotels Open 2024"]
[Site "Elite Stadshotellet, Kungsgatan 6, Vaxjo, Sweden"]
[Date "2024.02.10"]
[Round "6.5"]
[White "Fransson, Jorgen"]
[Black "Hector, Jonny"]
[Result "1-0"]
[TimeControl "15 minutes + 5 seconds per move from move one (Round 1 - 4) / 90 minutes + 30 seconds per move from move one (Round 5 - 8)"]
[BlackTitle "GM"]
[WhiteFideId "1701827"]
[BlackFideId "1700090"]
[WhiteElo "2134"]
[BlackElo "2449"]

1. c4 {[%clk 01:30:55]} {[%emt 00:00:04]} e5 {[%clk 01:30:50]} {[%emt
00:00:09]} 2. Nc3 {[%clk 01:31:01]} {[%emt 00:00:26]} Bb4 {[%clk 01:31:08]}
{[%emt 00:00:11]} 3. Nd5 {[%clk 01:31:06]} {[%emt 00:00:25]} a5 {[%clk
01:31:08]} {[%emt 00:00:31]} 4. Nxb4 {[%clk 01:17:09]} {[%emt 00:14:27]} axb4
{[%clk 01:31:13]} {[%emt 00:00:24]} 5. Nf3 {[%clk 01:14:09]} {[%emt 00:03:31]}
e4 {[%clk 01:27:44]} {[%emt 00:03:58]} 6. Nd4 {[%clk 01:14:19]} {[%emt
00:00:22]} d5 {[%clk 01:24:54]} {[%emt 00:03:19]} 7. e3 {[%clk 01:14:20]}
{[%emt 00:00:29]} Nf6 {[%clk 01:20:01]} {[%emt 00:05:23]} 8. cxd5 {[%clk
00:59:59]} {[%emt 00:14:52]} Qxd5 {[%clk 01:17:26]} {[%emt 00:03:03]} 9. Qc2
{[%clk 00:55:38]} {[%emt 00:04:52]} O-O {[%clk 01:16:56]} {[%emt 00:00:59]} 10.
Qc4 {[%clk 00:51:24]} {[%emt 00:04:45]} Qe5 {[%clk 01:12:47]} {[%emt 00:04:38]}
11. d3 {[%clk 00:45:23]} {[%emt 00:06:31]} c5 {[%clk 01:10:02]} {[%emt
00:03:15]} 12. Nb3 {[%clk 00:45:04]} {[%emt 00:00:49]} b6 {[%clk 01:08:17]}
{[%emt 00:02:15]} 13. d4 {[%clk 00:44:20]} {[%emt 00:01:14]} Qg5 {[%clk
01:02:02]} {[%emt 00:06:45]} 14. dxc5 {[%clk 00:43:52]} {[%emt 00:00:59]} Nc6
{[%clk 01:00:19]} {[%emt 00:02:12]} 15. h4 {[%clk 00:40:29]} {[%emt 00:03:54]}
Qg6 {[%clk 00:58:46]} {[%emt 00:02:02]} 16. cxb6 {[%clk 00:30:31]} {[%emt
00:10:28]} Ng4 {[%clk 00:55:15]} {[%emt 00:04:01]} 17. Nc5 {[%clk 00:27:59]}
{[%emt 00:03:03]} Bf5 {[%clk 00:42:54]} {[%emt 00:12:51]} 18. h5 {[%clk
00:22:50]} {[%emt 00:05:39]} Qf6 {[%clk 00:41:54]} {[%emt 00:01:29]} 19. f3
{[%clk 00:20:46]} {[%emt 00:02:34]} Nce5 {[%clk 00:29:59]} {[%emt 00:12:25]} 20.
Nxe4 {[%clk 00:19:29]} {[%emt 00:01:48]} Qxb6 {[%clk 00:27:58]} {[%emt
00:02:32]} 21. Qc5 {[%clk 00:14:58]} {[%emt 00:05:01]} Qb8 {[%clk 00:19:36]}
{[%emt 00:08:51]} 22. Nd6 {[%clk 00:10:40]} {[%emt 00:04:49]} Nd3+ {[%clk
00:11:54]} {[%emt 00:08:12]} 23. Bxd3 {[%clk 00:11:05]} {[%emt 00:00:06]} Bxd3
{[%clk 00:12:19]} {[%emt 00:00:04]} 24. e4 {[%clk 00:08:32]} {[%emt 00:03:03]}
Nf6 {[%clk 00:07:10]} {[%emt 00:05:39]} 25. Bf4 {[%clk 00:08:13]} {[%emt
00:00:49]} Qa7 {[%clk 00:03:14]} {[%emt 00:04:26]} 26. Qxa7 {[%clk 00:07:40]}
{[%emt 00:01:03]} Rxa7 {[%clk 00:03:42]} {[%emt 00:00:01]} 27. Kf2 {[%clk
00:06:22]} {[%emt 00:01:48]} Ne8 {[%clk 00:03:35]} {[%emt 00:00:37]} 28. Rhd1
{[%clk 00:06:33]} {[%emt 00:00:19]} Bc2 {[%clk 00:03:09]} {[%emt 00:00:56]} 29.
Rdc1 {[%clk 00:06:42]} {[%emt 00:00:21]} Bd3 {[%clk 00:02:14]} {[%emt
00:01:25]} 30. Rc8 {[%clk 00:06:36]} {[%emt 00:00:37]} Nc7 {[%clk 00:01:25]}
{[%emt 00:01:19]} 31. Be3 {[%clk 00:03:55]} {[%emt 00:03:11]} Rxc8 {[%clk
00:01:38]} {[%emt 00:00:17]} 32. Nxc8 {[%clk 00:04:19]} {[%emt 00:00:06]} Ra8
{[%clk 00:01:48]} {[%emt 00:00:19]} 33. Ne7+ {[%clk 00:03:19]} {[%emt
00:01:30]} Kf8 {[%clk 00:02:16]} {[%emt 00:00:02]} 34. Nc6 {[%clk 00:03:44]}
{[%emt 00:00:06]} b3 {[%clk 00:02:13]} {[%emt 00:00:33]} 35. Bc5+ {[%clk
00:03:41]} {[%emt 00:00:33]} Ke8 {[%clk 00:02:25]} {[%emt 00:00:17]} 36. a3
{[%clk 00:03:58]} {[%emt 00:00:15]} Ne6 {[%clk 00:01:48]} {[%emt 00:01:05]} 37.
Be3 {[%clk 00:03:34]} {[%emt 00:00:54]} Rc8 {[%clk 00:01:25]} {[%emt 00:00:52]}
38. Rc1 {[%clk 00:03:56]} {[%emt 00:00:09]} f5 {[%clk 00:01:11]} {[%emt
00:00:44]} 39. exf5 {[%clk 00:03:18]} {[%emt 00:01:09]} Bxf5 {[%clk 00:01:29]}
{[%emt 00:00:10]} 40. g4 {[%clk 00:03:10]} {[%emt 00:00:40]} Bd3 {[%clk
00:01:20]} {[%emt 00:00:39]} 41. Ke1 {[%clk 00:03:05]} {[%emt 00:00:35]} g6
{[%clk 00:01:01]} {[%emt 00:00:48]} 42. hxg6 {[%clk 00:02:37]} {[%emt
00:00:58]} Bxg6 {[%clk 00:01:02]} {[%emt 00:00:28]} 43. Ne5 {[%clk 00:01:55]}
{[%emt 00:01:13]} Bc2 {[%clk 00:01:14]} {[%emt 00:00:19]} 44. Nd3 {[%clk
00:02:05]} {[%emt 00:00:20]} Kd7 {[%clk 00:00:51]} {[%emt 00:00:53]} 45. Nb4
{[%clk 00:02:21]} {[%emt 00:00:13]} Bg6 {[%clk 00:01:07]} {[%emt 00:00:14]} 46.
Rxc8 {[%clk 00:02:39]} {[%emt 00:00:13]} Kxc8 {[%clk 00:01:35]} {[%emt
00:00:01]} 47. Kd2 {[%clk 00:02:56]} {[%emt 00:00:13]} h5 {[%clk 00:01:35]}
{[%emt 00:00:30]} 48. gxh5 {[%clk 00:03:01]} {[%emt 00:00:26]} Bxh5 {[%clk
00:02:03]} {[%emt 00:00:02]} 49. f4 {[%clk 00:03:00]} {[%emt 00:00:31]} Ng7
{[%clk 00:02:12]} {[%emt 00:00:20]} 50. Nd3 {[%clk 00:03:07]} {[%emt 00:00:24]}
Nf5 {[%clk 00:02:16]} {[%emt 00:00:26]} 51. Bg1 {[%clk 00:02:24]} {[%emt
00:01:13]} Bf7 {[%clk 00:01:48]} {[%emt 00:00:58]} 52. Nc5 {[%clk 00:02:48]}
{[%emt 00:00:07]} Kc7 {[%clk 00:01:29]} {[%emt 00:00:49]} 53. Kc3 {[%clk
00:03:02]} {[%emt 00:00:15]} Ng3 {[%clk 00:01:40]} {[%emt 00:00:19]} 54. Be3
{[%clk 00:02:45]} {[%emt 00:00:47]} Kc6 {[%clk 00:00:47]} {[%emt 00:01:24]} 55.
Nxb3 {[%clk 00:03:03]} {[%emt 00:00:12]} Ne2+ {[%clk 00:01:05]} {[%emt
00:00:11]} 56. Kb4 {[%clk 00:03:24]} {[%emt 00:00:10]} Kd5 {[%clk 00:01:16]}
{[%emt 00:00:18]} 57. Nd2 {[%clk 00:03:08]} {[%emt 00:00:46]} Nc1 {[%clk
00:00:57]} {[%emt 00:00:49]} 58. a4 {[%clk 00:02:37]} {[%emt 00:01:02]} Nd3+
{[%clk 00:01:24]} {[%emt 00:00:02]} 59. Kc3 {[%clk 00:03:01]} {[%emt 00:00:07]}
Ne1 {[%clk 00:01:38]} {[%emt 00:00:16]} 60. Nc4 {[%clk 00:02:06]} {[%emt
00:01:24]} Ng2 {[%clk 00:01:28]} {[%emt 00:00:40]} 61. Bd2 {[%clk 00:02:30]}
{[%emt 00:00:06]} Nh4 {[%clk 00:01:31]} {[%emt 00:00:27]} 62. b4 {[%clk
00:02:29]} {[%emt 00:00:32]} Nf5 {[%clk 00:01:51]} {[%emt 00:00:10]} 63. Ne3+
{[%clk 00:02:31]} {[%emt 00:00:27]} Nxe3 {[%clk 00:01:42]} {[%emt 00:00:40]} 64.
Bxe3 {[%clk 00:02:56]} {[%emt 00:00:05]} 1-0